[Event "French Top 16-A 2024"]
[Site "Chartres"]
[Date "2024.06.03"]
[Round "5.6"]
[White "Barseghyan, Harutyun"]
[Black "Delorme, Axel"]
[Result "0-1"]
[ECO "E06"]
[WhiteElo "2431"]
[BlackElo "2489"]
[Annotator "TA"]
[PlyCount "96"]
[EventDate "2024.06.01"]
[EventType "team-tourn"]
[EventCountry "FRA"]
[SourceTitle "playchess.com"]
[Source "ChessBase"]
[SourceQuality "1"]
[TimeControl "40/5400+30:1800+30"]

{[%evp 16,96,-4,-11,0,-26,-5,-8,-15,-14,9,-14,9,-13,0,-45,-18,-23,-11,0,0,0,0,0,0,5,14,-39,0,-51,66,45,48,33,28,20,23,0,0,-357,-382,-336,-312,-815,-766,-483,-488,-1253,-1247,-1233,-1199,-1191,-1233,-1154,-1125,-864,-438,-451,-395,-454,-434,-1172,-1095,-937,0,-423,-427,-561,-568,-1124,-1069,-1243,-1194,-1668,-1650,-29985,-29986,-29987,-29988,-29997,-29998,-29998,-29996]} 1. d4 {[%emt 0:03:45]} d5 {[%emt 0:00:17]} 2. c4 {[%emt 0:05:48]} e6 {[%emt 0:00:04]} 3. Nf3 {[%emt 0:00:19]} Nf6 {[%emt 0:00:06]} 4. g3 {[%emt 0:00:04]} Be7 {[%emt 0:00:12]} 5. Bg2 {[%emt 0:00:38]} O-O {[%emt 0:00:14]} 6. Nbd2 {[%emt 0:10:15]} b6 {[%emt 0:02:17]} 7. cxd5 {[%emt 0:07:32]} exd5 {[%emt 0:01:05]} 8. Ne5 {[%emt 0:01:06]} Bb7 {[%emt 0:01:22]} 9. O-O {[%emt 0:05:09]} Na6 {[%emt 0:12:09]} 10. Ndf3 {[%emt 0:03:30]} c5 {[%emt 0:11:37]} 11. b3 {[%emt 0:02:31]} Nc7 {[%emt 0:03:04] The position is equal.} 12. Bb2 {[%emt 0:01:16]} Ne6 {[%emt 0:00:41]} 13. Rc1 {[%emt 0:01:28]} Re8 {[%emt 0:07:59]} 14. Rc2 {[%emt 0:04:17]} Ne4 {[%emt 0:07:15]} 15. Qa1 {[%emt 0:02:00]} Bf8 {[%emt 0:05:25]} 16. Rd1 {[%emt 0:04:03]} Qe7 {[%emt 0:01:21]} 17. e3 {[%emt 0:03:30]} Red8 {[%emt 0:05:34]} 18. dxc5 {[%emt 0:11:36]} bxc5 {[%emt 0:01:06]} 19. Nd2 {[%emt 0:08:33]} Nd6 {[%emt 0:05:49]} 20. Nd3 {[%emt 0:00:47]} Rac8 {[%emt 0:03:26]} 21. Rdc1 {[%emt 0:00:40]} (21. Qc1 $11) 21... Ne4 {[%emt 0:02:01]} 22. Ba3 {[%emt 0:02:15]} (22. Rd1 $11) 22... Qg5 {[%emt 0:10:47]} (22... Ba6 $15 23. Nf4 (23. Nxe4 Bxd3 24. Rxc5 Nxc5 $17) 23... Nxf4 24. gxf4 Nxd2 25. Rxd2 Qh4) 23. Nxe4 {[%emt 0:02:59]} dxe4 {[%emt 0:00:13]} 24. Nf4 {[%emt 0:00:04]} Nxf4 {[%emt 0:04:13]} 25. exf4 {[%emt 0:00:05]} Qh5 {[%emt 0:00:02]} 26. Re1 {[%emt 0:03:20][%cal Oa1c1]} Rd4 {[%emt 0:03:46]} 27. Bc1 $2 {[%emt 0:04:00][%mdl 8192] Black converts the advantage convincingly.} (27. h4 $11 {and White is okay.}) 27... Rd1 $19 {[%emt 0:04:58]} 28. Qc3 {[%emt 0:03:31]} c4 {[%emt 0:00:41] Threatens to win with ...cxb3.} 29. Rf1 $2 {[%emt 0:06:12]} (29. bxc4 $2 Rxc4 $19) (29. g4 Qxg4 30. h3 cxb3 31. hxg4 bxc2 (31... Rxc3 $2 32. Rxd1 bxc2 33. Rd8 $19) 32. Qe3) 29... Rxf1+ {[%emt 0:04:53]} 30. Bxf1 {[%emt 0:00:01] [#]} e3 $1 {[%emt 0:00:55]} 31. bxc4 {[%emt 0:03:48]} (31. Bxe3 $2 Qf3) (31. fxe3 $142 Qf3 32. bxc4 Qh1+ 33. Kf2 Qxh2+ 34. Ke1 Qxg3+ 35. Rf2) 31... Qf3 {[%emt 0:00:48][%csl Gb7][%cal Rf3h1]} 32. fxe3 {[%emt 0:00:05]} Qh1+ {[%emt 0:00:13]} 33. Kf2 {[%emt 0:00:02]} Qxh2+ {[%emt 0:00:19]} 34. Ke1 {[%emt 0:00:02]} Qxg3+ {[%emt 0:00:21]} 35. Rf2 {[%emt 0:00:05]} h5 {[%emt 0:01:14]} 36. Bd2 {[%emt 0:00:14]} Bc5 {[%emt 0:00:39]} 37. Qe5 {[%emt 0:00:25] Dodges Re8} h4 {[%emt 0:00:36]} 38. Ke2 {[%emt 0:02:40]} (38. Bd3 $142) 38... Qg4+ {[%emt 0:00:13]} 39. Ke1 {[%emt 0:00:47]} Qg3 {[%emt 0:00:09]} (39... f6 $142 40. Qc3 Qg3 (40... Be4 $2 41. Bd3 $19)) 40. Ke2 $1 {[%emt 0:00:15]} Bb6 {[%emt 0:01:01][%cal Oc8d8] [#] White must now prevent ...Rd8!} (40... Qg4+ 41. Ke1 f6 42. Qb2) 41. Bc3 {[%emt 0:16:55]} Bc6 {[%emt 0:08:46] Hoping for ...Re8.} 42. c5 {[%emt 0:08:14]} Bb5+ {[%emt 0:01:48]} 43. Kd1 {[%emt 0:02:21]} Rxc5 {[%emt 0:06:06]} ({Stronger than} 43... Qxf2 44. Qxg7#) 44. Qb8+ {[%emt 0:00:08]} Kh7 {[%emt 0:00:09]} 45. Rg2 {[%emt 0:00:21]} Qf3+ {[%emt 0:01:49] Black mates.} ({Weaker is} 45... Qxe3 46. Rxg7+ Kh6 47. Qh8#) 46. Kd2 {[%emt 0:00:05]} Qd5+ {[%emt 0:01:27]} ({Worse is} 46... Bxf1 47. Rxg7+ Kh6 48. Qh8#) 47. Bd4 {[%emt 0:00:27]} Qxa2+ {[%emt 0:00:32]} 48. Kd1 {[%emt 0:00:11]} Ba4+ {[%emt 0:00:09] Weighted Error Value: White=0.99/Black=0.33.  Loses game:     	White=1     	---        Mistake:       	White=4     	Black=1      Inaccurate:     	White=4     	Black=2      OK:         	White=9     	Black=4      Best:        	White=2     	Black=7} 0-1

[Event "French Top 16-A 2024"]
[Site "Chartres"]
[Date "2024.06.03"]
[Round "5.7"]
[White "Tregubov, Pavel V."]
[Black "Migot, Tangi"]
[Result "1/2-1/2"]
[ECO "B40"]
[WhiteElo "2562"]
[BlackElo "2326"]
[Annotator "TA"]
[PlyCount "59"]
[EventDate "2024.06.01"]
[EventType "team-tourn"]
[EventCountry "FRA"]
[SourceTitle "playchess.com"]
[Source "ChessBase"]
[SourceQuality "1"]
[TimeControl "40/5400+30:1800+30"]

{[%evp 9,59,14,8,6,0,-20,-16,-36,-19,-25,-31,-22,-31,-27,-20,-28,-30,-20,-29,-44,-27,-29,-38,-19,0,0,0,0,-1,-10,-17,-16,0,0,16,5,0,0,0,0,6,0,0,-6,0,0,0,0,0,0,0,0]} 1. e4 {[%emt 0:01:49]} c5 {[%emt 0:00:09]} 2. Nf3 {[%emt 0:00:06]} e6 {[%emt 0:00:29]} 3. c3 {[%emt 0:00:07]} d5 {[%emt 0:00:23]} 4. e5 {[%emt 0:00:22]} d4 {[%emt 0:01:29]} 5. Na3 {[%emt 0:00:13]} Ne7 {[%emt 0:06:04]} 6. Nc4 {[%emt 0:01:08] [#] Hoping for Nd6+.} Ng6 {[%emt 0:01:34]} 7. a4 {[%emt 0:01:10]} Nc6 {[%emt 0:07:02]} 8. d3 {[%emt 0:00:23]} Qc7 {[%emt 0:03:13]} 9. Qe2 {[%emt 0:02:01]} b6 {[%emt 0:03:46]} 10. h4 {[%emt 0:00:26] aiming for h5.} h5 $1 {[%emt 0:02:46]} 11. g3 {[%emt 0:09:57]} Bb7 {[%emt 0:02:16][%cal Oc6e5]} 12. Bg2 {[%emt 0:16:19] [#]} Ncxe5 $1 {[%emt 0:11:15]} 13. Ncxe5 {[%emt 0:00:46]} Nxe5 {[%emt 0:00:41]} 14. cxd4 {[%emt 0:00:17]} cxd4 {[%emt 0:08:25]} 15. O-O {[%emt 0:00:08]} Nxf3+ {[%emt 0:08:20]} (15... Ng4 {with more complications.} 16. Nxd4 Bxg2 17. Kxg2 Qd7) 16. Bxf3 {[%emt 0:00:35]} Bc5 {[%emt 0:00:22] The position is equal.} 17. Bf4 {[%emt 0:01:09]} Qd7 {[%emt 0:02:28]} 18. Bxb7 {[%emt 0:07:48]} Qxb7 {[%emt 0:00:12]} 19. Qe5 {[%emt 0:00:20]} O-O {[%emt 0:04:52]} 20. Qxh5 {[%emt 0:02:24]} Rfd8 {[%emt 0:01:13][%cal Bf8d8,Bd8d5,Bd5b5,Bb5b3,Bb3d3][%mdl 32]} 21. Rfe1 {[%emt 0:02:05]} Rd5 {[%emt 0:04:43]} 22. Qg4 {[%emt 0:01:36]} Bd6 {[%emt 0:05:26]} 23. Bd2 {[%emt 0:10:43]} Rc8 {[%emt 0:03:09]} 24. Rac1 {[%emt 0:05:12] Wards off Rc2} Bf8 {[%emt 0:02:26]} 25. b3 {[%emt 0:04:04]} (25. Qe4 {is more complex.} Qa6 26. b3 b5 27. axb5 Rxb5 28. Rxc8 Qxc8 29. Rc1) 25... b5 {[%emt 0:05:09]} 26. axb5 {[%emt 0:04:15]} Rxb5 {[%emt 0:01:45]} 27. Qxd4 {[%emt 0:06:31]} Rxb3 {[%emt 0:00:34]} 28. Rxc8 {[%emt 0:02:07]} Qxc8 {[%emt 0:00:05]} 29. Qxa7 {[%emt 0:06:04]} Rxd3 {[%emt 0:00:16]} 30. Be3 {[%emt 0:02:27] Weighted Error Value: White=0.04 (flawless) /Black=0.05 (flawless) .  OK:         	White=6     	Black=11     Best:        	White=1     	---        Strong:       	---       	Black=1} 1/2-1/2

[Event "French Top 16-A 2024"]
[Site "Chartres"]
[Date "2024.06.03"]
[Round "5.7"]
[White "Flom, Gabriel"]
[Black "Goldsztejn, Gildas"]
[Result "0-1"]
[ECO "B76"]
[WhiteElo "2431"]
[BlackElo "2412"]
[Annotator "RC"]
[PlyCount "144"]
[EventDate "2024.06.01"]
[EventType "team-tourn"]
[EventCountry "FRA"]
[SourceTitle "playchess.com"]
[Source "ChessBase"]
[SourceQuality "1"]
[TimeControl "40/5400+30:1800+30"]

1. e4 {[%emt 0:00:03]} c5 {[%emt 0:05:16]} 2. Nf3 {[%emt 0:00:47]} d6 {[%emt 0:00:05]} 3. d4 {[%emt 0:00:27]} cxd4 {[%emt 0:00:06]} 4. Nxd4 {[%emt 0:00:04]} Nf6 {[%emt 0:00:06]} 5. Nc3 {[%emt 0:00:06]} g6 {[%emt 0:00:19]} 6. Be3 {[%emt 0:02:57]} Bg7 {[%emt 0:00:06]} 7. f3 {[%emt 0:00:11]} O-O {[%emt 0:00:08]} 8. Qd2 {[%emt 0:00:56]} Nc6 {[%emt 0:00:05]} 9. O-O-O {[%emt 0:01:00]} d5 {[%emt 0:00:08]} 10. exd5 {[%emt 0:00:39]} Nxd5 {[%emt 0:00:06]} 11. Nxc6 {[%emt 0:00:35]} bxc6 {[%emt 0:00:05]} 12. Bd4 {[%emt 0:00:55]} e5 {[%emt 0:00:06]} 13. Bc5 {[%emt 0:00:16]} Re8 {[%emt 0:00:05]} 14. Ne4 {[%emt 0:01:51]} Qc7 {[%emt 0:00:06]} 15. h4 {[%emt 0:02:16]} f5 {[%emt 0:00:06]} 16. Nd6 {[%emt 0:00:34]} Rd8 {[%emt 0:00:04]} 17. Nxc8 {[%emt 0:00:31]} Raxc8 {[%emt 0:00:05]} 18. h5 {[%emt 0:01:06]} Nb6 {[%emt 0:01:45]} 19. Bxb6 {[%emt 0:01:10]} Rxd2 {[%emt 0:00:06]} 20. Bc4+ {[%emt 0:00:12]} Kf8 {[%emt 0:00:13]} 21. Bxc7 {[%emt 0:00:09]} Rxd1+ {[%emt 0:00:08]} 22. Rxd1 {[%emt 0:00:09]} Bh6+ {[%emt 0:00:32]} 23. Kb1 {[%emt 0:00:06]} Rxc7 {[%emt 0:00:04]} 24. Rd6 {[%emt 0:04:39]} Kg7 {[%emt 0:02:17]} 25. hxg6 {[%emt 0:00:37]} hxg6 {[%emt 0:00:57]} 26. b4 {[%emt 0:06:25]} e4 {[%emt 0:00:18]} 27. fxe4 {[%emt 0:00:51]} fxe4 {[%emt 0:00:13]} 28. Kb2 {[%emt 0:01:37]} Bf4 {[%emt 0:06:59]} 29. Re6 {[%emt 0:00:40]} e3 {[%emt 0:00:07]} 30. a4 {[%emt 0:10:52]} g5 {[%emt 0:05:17]} 31. a5 {[%emt 0:11:22]} Kf8 {[%emt 0:04:45]} 32. Kb3 {[%emt 0:02:27]} Re7 {[%emt 0:07:27]} 33. Rg6 {[%emt 0:00:05]} Ke8 {[%emt 0:02:10]} 34. Be2 {[%emt 0:06:44]} Kd7 {[%emt 0:09:07]} 35. c4 {[%emt 0:13:04]} Kc7 {[%emt 0:13:04]} 36. c5 {[%emt 0:00:33]} a6 {[%emt 0:14:49]} 37. Kc3 {[%emt 0:05:55]} Kb7 {[%emt 0:01:21]} 38. Kd3 {[%emt 0:00:48]} Kc7 {[%emt 0:01:52]} 39. Kc2 {[%emt 0:10:31]} Re4 {[%emt 0:04:15]} 40. Rg7+ {[%emt 0:00:08]} Kb8 {[%emt 0:01:21]} 41. Kb3 {[%emt 0:33:11]} Re8 {[%emt 0:41:17]} 42. Rd7 {[%emt 0:12:08]} Bg3 {[%emt 0:01:51]} 43. Rd4 {[%emt 0:00:54]} Bf4 {[%emt 0:02:05]} 44. Kc2 {[%emt 0:01:27]} Kb7 {[%emt 0:06:14]} 45. Kd1 {[%emt 0:00:00]} Bc7 {[%emt 0:00:00]} 46. Rg4 {[%emt 0:00:00]} Rd8+ {[%emt 0:00:00]} 47. Kc1 {[%emt 0:00:00]} Rd2 {[%emt 0:00:00]} 48. Bf3 {[%emt 0:00:00]} Bf4 {[%emt 0:00:00]} 49. g3 {[%emt 0:00:00]} Rf2 {[%emt 0:00:00]} 50. Be2 {[%emt 0:00:00]} Rxe2 {[%emt 0:00:00]} 51. gxf4 {[%emt 0:00:00]} Rf2 {[%emt 0:00:00]} 52. Kd1 {[%emt 0:00:00]} gxf4 {[%emt 0:00:00]} 53. Rg7+ {[%emt 0:00:00]} Kc8 {[%emt 0:00:00]} 54. Re7 {[%emt 0:00:00]} Rb2 {[%emt 0:00:00]} 55. Rf7 {[%emt 0:00:00]} Rxb4 {[%emt 0:00:00]} 56. Ke2 {[%emt 0:00:00]} Rb2+ {[%emt 0:00:00]} 57. Ke1 {[%emt 0:00:00]} Rf2 {[%emt 0:00:00]} 58. Rf6 {[%emt 0:00:00]} Kd7 {[%emt 0:00:00]} 59. Rd6+ {[%emt 0:00:00]} Ke7 {[%emt 0:00:00]} 60. Rxc6 {[%emt 0:00:00]} f3 {[%emt 0:00:00]} 61. Rc7+ {[%emt 0:00:00]} Ke6 {[%emt 0:00:00]} 62. Rc6+ {[%emt 0:00:00]} Kd5 {[%emt 0:00:00]} 63. Rf6 {[%emt 0:00:00]} Kxc5 {[%emt 0:00:00]} 64. Rf8 {[%emt 0:00:00]} Kb5 {[%emt 0:00:00]} 65. Rf5+ {[%emt 0:00:00]} Kb4 {[%emt 0:00:00]} 66. Re5 {[%emt 0:00:00]} Re2+ {[%emt 0:00:00]} 67. Kf1 {[%emt 0:00:00]} Kc3 {[%emt 0:00:00]} 68. Re8 {[%emt 0:00:00]} Kd2 {[%emt 0:00:00]} 69. Rd8+ {[%emt 0:00:00]} Kc2 {[%emt 0:00:00]} 70. Rf8 {[%emt 0:00:00]} Rh2 {[%emt 0:00:00]} 71. Rxf3 {[%emt 0:00:00]} Kd2 {[%emt 0:00:00]} 72. Rf2+ {[%emt 0:00:00]} Rxf2+ {[%emt 0:00:00]} 0-1

[Event "French Top 16-A 2024"]
[Site "Chartres"]
[Date "2024.06.03"]
[Round "5.8"]
[White "Guichard, Pauline"]
[Black "Cornileau, Juliette"]
[Result "1-0"]
[ECO "D11"]
[WhiteElo "2362"]
[BlackElo "2028"]
[Annotator "RC"]
[PlyCount "73"]
[EventDate "2024.06.01"]
[EventType "team-tourn"]
[EventCountry "FRA"]
[SourceTitle "playchess.com"]
[Source "ChessBase"]
[SourceQuality "1"]
[TimeControl "40/5400+30:1800+30"]

1. d4 {[%emt 0:02:13]} d5 {[%emt 0:00:06]} 2. c4 {[%emt 0:00:04]} c6 {[%emt 0:00:03]} 3. Nf3 {[%emt 0:00:05]} Nf6 {[%emt 0:00:04]} 4. Nbd2 {[%emt 0:00:04]} Bf5 {[%emt 0:05:29]} 5. Nh4 {[%emt 0:00:10]} Be4 {[%emt 0:12:28]} 6. Qb3 {[%emt 0:01:08]} Qc8 {[%emt 0:04:46]} 7. Nxe4 {[%emt 0:05:10]} dxe4 {[%emt 0:01:16]} 8. g3 {[%emt 0:10:45]} e6 {[%emt 0:01:06]} 9. Bh3 {[%emt 0:00:28]} Nbd7 {[%emt 0:06:20]} 10. O-O {[%emt 0:04:12]} h6 {[%emt 0:03:38]} 11. Ng2 {[%emt 0:01:37]} Be7 {[%emt 0:08:17]} 12. Ne3 {[%emt 0:01:07]} Qc7 {[%emt 0:03:04]} 13. Bd2 {[%emt 0:01:51]} O-O {[%emt 0:06:00]} 14. Rac1 {[%emt 0:02:49]} Qb6 {[%emt 0:03:52]} 15. Qc3 {[%emt 0:00:18]} a5 {[%emt 0:00:42]} 16. a3 {[%emt 0:00:27]} a4 {[%emt 0:01:26]} 17. Rfd1 {[%emt 0:01:04]} Qa6 {[%emt 0:02:03]} 18. Qc2 {[%emt 0:02:39]} Rac8 {[%emt 0:11:10]} 19. Bg2 {[%emt 0:05:12]} b5 {[%emt 0:04:24]} 20. c5 {[%emt 0:02:06]} e5 {[%emt 0:07:30]} 21. dxe5 {[%emt 0:10:31]} Nd5 {[%emt 0:00:30]} 22. Nf5 {[%emt 0:09:02]} Bxc5 {[%emt 0:00:28]} 23. Qxe4 {[%emt 0:00:15]} Qa7 {[%emt 0:11:07]} 24. Qg4 {[%emt 0:02:04]} g6 {[%emt 0:01:35]} 25. Nxh6+ {[%emt 0:00:25]} Kh7 {[%emt 0:01:00]} 26. Qh4 {[%emt 0:03:32]} Be7 {[%emt 0:00:53]} 27. Bg5 {[%emt 0:02:23]} Bxg5 {[%emt 0:00:07]} 28. Qxg5 {[%emt 0:00:05]} Nxe5 {[%emt 0:02:41]} 29. Qxe5 {[%emt 0:00:23]} Kxh6 {[%emt 0:00:10]} 30. Bxd5 {[%emt 0:01:49]} cxd5 {[%emt 0:00:01]} 31. Rxc8 {[%emt 0:00:09]} Rxc8 {[%emt 0:00:03]} 32. Rd4 {[%emt 0:00:34]} Rc1+ {[%emt 0:01:59]} 33. Kg2 {[%emt 0:00:07]} g5 {[%emt 0:00:03]} 34. h4 {[%emt 0:00:57]} Rc6 {[%emt 0:02:11]} 35. Qh8+ {[%emt 0:00:48]} Kg6 {[%emt 0:00:10]} 36. h5+ {[%emt 0:00:05]} Kf5 {[%emt 0:00:10]} 37. Rxd5+ {[%emt 0:00:07]} 1-0

[Event "French Top 16-A 2024"]
[Site "Chartres"]
[Date "2024.06.03"]
[Round "5.8"]
[White "Fischer, Julie"]
[Black "Broly, Mathilde"]
[Result "1/2-1/2"]
[ECO "C45"]
[WhiteElo "2092"]
[BlackElo "2097"]
[Annotator "NA RC"]
[PlyCount "54"]
[EventDate "2024.06.01"]
[EventType "team-tourn"]
[EventCountry "FRA"]
[SourceTitle "playchess.com"]
[Source "ChessBase"]
[SourceQuality "1"]
[TimeControl "40/5400+30:1800+30"]

1. e4 {[%emt 0:01:50]} e5 {[%emt 0:00:34]} 2. Nf3 {[%emt 0:00:26]} Nc6 {[%emt 0:00:18]} 3. d4 {[%emt 0:00:22]} exd4 {[%emt 0:00:25]} 4. Nxd4 {[%emt 0:00:08]} Bc5 {[%emt 0:00:53]} 5. Nb3 {[%emt 0:00:42]} Bb6 {[%emt 0:00:26]} 6. Nc3 {[%emt 0:00:59]} Nf6 {[%emt 0:07:50]} 7. Bd3 {[%emt 0:07:54]} d6 {[%emt 0:16:42]} 8. Bg5 {[%emt 0:06:30]} h6 {[%emt 0:01:14]} 9. Bh4 {[%emt 0:01:14]} g5 {[%emt 0:03:18]} 10. Bg3 {[%emt 0:00:05]} Bg4 {[%emt 0:02:16]} 11. Qd2 {[%emt 0:02:55]} Qe7 {[%emt 0:04:24]} 12. f3 {[%emt 0:03:06]} Bd7 {[%emt 0:06:20]} 13. O-O-O {[%emt 0:02:18]} O-O-O {[%emt 0:08:54]} 14. Kb1 {[%emt 0:04:22]} Be6 {[%emt 0:03:54]} 15. h4 {[%emt 1:05:09]} Nh5 {[%emt 0:06:24]} 16. Bf2 {[%emt 0:00:00]} Bxf2 {[%emt 0:15:46]} 17. Qxf2 {[%emt 0:00:00]} Kb8 {[%emt 0:02:35]} 18. g3 {[%emt 0:00:00]} Nf6 {[%emt 0:01:49]} 19. Nd4 {[%emt 0:00:00]} Nxd4 {[%emt 0:01:53]} 20. Qxd4 {[%emt 0:00:00]} c5 {[%emt 0:00:06]} 21. Qe3 {[%emt 0:00:00]} Rhg8 {[%emt 0:02:28]} 22. e5 {[%emt 0:00:00]} Bd7 {[%emt 0:00:52]} 23. hxg5 {[%emt 0:00:00]} hxg5 {[%emt 0:01:08]} 24. Rhe1 {[%emt 0:00:00]} Rde8 {[%emt 0:01:41]} 25. Re2 {[%emt 0:00:00]} dxe5 {[%emt 0:01:56]} 26. Rde1 {[%emt 0:00:00]} Qd6 {[%emt 0:00:12]} 27. g4 {[%emt 0:00:00]} Bc6 {[%emt 0:01:18]} 1/2-1/2

[Event "French Top 16-A 2024"]
[Site "Chartres"]
[Date "2024.06.03"]
[Round "5.9"]
[White "Karthik Venkataraman"]
[Black "Alonso Rosell, Alvar"]
[Result "0-1"]
[ECO "C72"]
[WhiteElo "2606"]
[BlackElo "2556"]
[Annotator "RC"]
[PlyCount "124"]
[EventDate "2024.06.01"]
[EventType "team-tourn"]
[EventCountry "FRA"]
[SourceTitle "playchess.com"]
[Source "ChessBase"]
[SourceQuality "1"]
[TimeControl "40/5400+30:1800+30"]

1. e4 {[%emt 0:00:03]} e5 {[%emt 0:07:11]} 2. Nf3 {[%emt 0:00:08]} Nc6 {[%emt 0:00:03]} 3. Bb5 {[%emt 0:00:10]} a6 {[%emt 0:00:04]} 4. Ba4 {[%emt 0:00:06]} d6 {[%emt 0:00:03]} 5. O-O {[%emt 0:00:08]} Bd7 {[%emt 0:00:03]} 6. c4 {[%emt 0:00:12]} Nge7 {[%emt 0:00:11]} 7. Nc3 {[%emt 0:02:01]} g6 {[%emt 0:00:45]} 8. d4 {[%emt 0:02:25]} Bg7 {[%emt 0:00:18]} 9. dxe5 {[%emt 0:05:09]} Nxe5 {[%emt 0:00:58]} 10. Nxe5 {[%emt 0:00:26]} Bxe5 {[%emt 0:00:07]} 11. Bb3 {[%emt 0:18:07]} Nc6 {[%emt 0:05:56]} 12. Be3 {[%emt 0:00:35]} Na5 {[%emt 0:07:35]} 13. Qd2 {[%emt 0:05:30]} Bc6 {[%emt 0:06:45]} 14. Bg5 {[%emt 0:17:17]} Bf6 {[%emt 0:15:52]} 15. Bh6 {[%emt 0:01:59]} Nxb3 {[%emt 0:22:00]} 16. axb3 {[%emt 0:00:05]} Rg8 {[%emt 0:00:24]} 17. b4 {[%emt 0:04:36]} g5 {[%emt 0:14:31]} 18. f4 {[%emt 0:03:10]} gxf4 {[%emt 0:03:13]} 19. Qxf4 {[%emt 0:01:34]} Rg6 {[%emt 0:02:37]} 20. Qe3 {[%emt 0:30:39]} Bxc3 {[%emt 0:03:26]} 21. bxc3 {[%emt 0:00:18]} Qe7 {[%emt 0:00:43]} 22. Rae1 {[%emt 0:02:06]} O-O-O {[%emt 0:01:24]} 23. Bf4 {[%emt 0:01:03]} f5 {[%emt 0:02:48]} 24. Qh3 {[%emt 0:00:07]} Qd7 {[%emt 0:00:45]} 25. b5 {[%emt 0:00:52]} Bxe4 {[%emt 0:00:16]} 26. Rf2 {[%emt 0:01:04]} axb5 {[%emt 0:01:42]} 27. cxb5 {[%emt 0:02:03]} Qxb5 {[%emt 0:00:27]} 28. Qxh7 {[%emt 0:00:02]} Rdg8 {[%emt 0:01:03]} 29. g3 {[%emt 0:00:10]} Qe8 {[%emt 0:00:48]} 30. Ra2 {[%emt 0:00:48]} Kb8 {[%emt 0:01:59]} 31. Qh3 {[%emt 0:02:06]} Qc6 {[%emt 0:00:38]} 32. Re3 {[%emt 0:00:08]} Qd5 {[%emt 0:01:11]} 33. Ra1 {[%emt 0:00:27]} Qc5 {[%emt 0:00:26]} 34. Qf1 {[%emt 0:00:11]} b6 {[%emt 0:00:42]} 35. Qf2 {[%emt 0:00:14]} Bb7 {[%emt 0:00:06]} 36. h4 {[%emt 0:01:26]} Rg4 {[%emt 0:00:13]} 37. Kh2 {[%emt 0:00:22]} Qd5 {[%emt 0:00:43]} 38. Rg1 {[%emt 0:00:34]} Bc6 {[%emt 0:00:05]} 39. Re7 {[%emt 0:00:40]} Kb7 {[%emt 0:00:54]} 40. Qe3 {[%emt 0:00:56]} Ra8 {[%emt 0:00:56]} 41. Qf2 {[%emt 0:01:03]} Ra2 {[%emt 0:09:12]} 42. Re2 {[%emt 0:00:00]} Ra4 {[%emt 0:00:04]} 43. Qe1 {[%emt 0:03:37]} Raxf4 {[%emt 0:08:08]} 44. gxf4 {[%emt 0:00:03]} Qf3 {[%emt 0:00:04]} 45. Rb2 {[%emt 0:10:27]} Qxf4+ {[%emt 0:01:40]} 46. Kh3 {[%emt 0:00:05]} Qf3+ {[%emt 0:02:55]} 47. Kh2 {[%emt 0:00:10]} Be4 {[%emt 0:03:05]} 48. Ra2 {[%emt 0:00:30]} Qf4+ {[%emt 0:02:03]} 49. Kh3 {[%emt 0:00:07]} Bf3 {[%emt 0:03:32]} 50. Rf1 {[%emt 0:08:03]} Rg8 {[%emt 0:00:25]} 51. Rxf3 {[%emt 0:01:06]} Qxf3+ {[%emt 0:00:02]} 52. Kh2 {[%emt 0:00:05]} Rg4 {[%emt 0:00:22]} 53. Rb2 {[%emt 0:00:08]} f4 {[%emt 0:00:51]} 54. Ra2 {[%emt 0:00:13]} Rg3 {[%emt 0:00:09]} 55. Qe6 {[%emt 0:00:07]} Rg4 {[%emt 0:02:32]} 56. Qe1 {[%emt 0:00:02]} Qd5 {[%emt 0:00:32]} 57. c4 {[%emt 0:01:28]} Qxc4 {[%emt 0:00:38]} 58. Rg2 {[%emt 0:00:02]} f3 {[%emt 0:00:31]} 59. Rxg4 {[%emt 0:00:03]} Qxg4 {[%emt 0:00:02]} 60. Qg3 {[%emt 0:00:09]} Qe4 {[%emt 0:00:30]} 61. h5 {[%emt 0:00:05]} Qe2+ {[%emt 0:00:53]} 62. Kh3 {[%emt 0:00:12]} f2 {[%emt 0:00:12]} 0-1

[Event "French Top 16-A 2024"]
[Site "Chartres"]
[Date "2024.06.03"]
[Round "5.9"]
[White "Travadon, Loic"]
[Black "Ter-Sahakyan, Samvel"]
[Result "1/2-1/2"]
[ECO "B51"]
[WhiteElo "2446"]
[BlackElo "2652"]
[Annotator "TA"]
[PlyCount "44"]
[EventDate "2024.06.01"]
[EventType "team-tourn"]
[EventCountry "FRA"]
[SourceTitle "playchess.com"]
[Source "ChessBase"]
[SourceQuality "1"]
[TimeControl "40/5400+30:1800+30"]

{[%evp 9,44,0,0,0,23,22,25,17,29,18,23,16,5,0,19,8,24,30,38,38,34,33,29,25,36,33,22,17,40,0,0,0,0,0,0,-7,11]} 1. e4 {[%emt 0:00:58]} c5 {[%emt 0:00:06]} 2. Nf3 {[%emt 0:00:06]} d6 {[%emt 0:00:06]} 3. Bb5+ {[%emt 0:00:06]} Nd7 {[%emt 0:01:24]} 4. d4 {[%emt 0:00:09]} cxd4 {[%emt 0:04:40]} 5. Nxd4 {[%emt 0:00:08]} Ngf6 {[%emt 0:00:15]} 6. O-O {[%emt 0:00:10]} a6 {[%emt 0:02:57]} 7. Bd3 {[%emt 0:00:08]} Nc5 {[%emt 0:00:34][%cal Oe7e5]} 8. Nc3 {[%emt 0:00:10] White has an edge.} g6 {[%emt 0:05:18]} 9. Re1 {[%emt 0:00:32]} Bg7 {[%emt 0:00:14]} 10. Bf1 {[%emt 0:00:07]} O-O {[%emt 0:00:34]} 11. a4 {[%emt 0:00:05][%cal Ba2a4,Ba4a5][%mdl 32]} Bd7 {[%emt 0:03:26]} 12. Ra3 {[%emt 0:00:16]} Rc8 {[%emt 0:02:58]} 13. a5 {[%emt 0:00:05]} Re8 {[%emt 0:14:25]} 14. b4 {[%emt 0:17:45]} e5 {[%emt 0:05:17]} 15. Nf3 {[%emt 0:03:01]} Ne6 {[%emt 0:00:20][%cal Oe6d4]} 16. Be3 {[%emt 0:01:51]} Nc7 {[%emt 0:05:50]} 17. Bg5 {[%emt 0:04:47][%cal Of3d2]} ({Reject} 17. Qxd6 Bf8 18. Qd3 (18. Qb6 $2 Re6 $19) 18... Bxb4 $11) 17... Bc6 {[%emt 0:13:56]} 18. Bc4 {[%emt 0:01:16]} Qd7 {[%emt 0:06:21]} 19. Bxf6 {[%emt 0:02:42]} Bxf6 {[%emt 0:00:07] The position is equal.} 20. Re2 {[%emt 0:00:34]} Red8 {[%emt 0:04:56]} 21. Rd2 {[%emt 0:03:20]} Kg7 {[%emt 0:00:11]} 22. Qe2 {[%emt 0:04:29]} h5 {[%emt 0:05:32] Weighted Error Value: White=0.05 (flawless) /Black=0.06 (flawless) .  Inaccurate:     	White=1     	---        OK:         	White=10    	Black=9} 1/2-1/2